bitfinex/quotes_ETHUSD_20240925
["timestamp","ask_amount","ask_price","bid_price","bid_amount"]
[1727275785978,3.8133,2622.4,2622.3,1.27462595]
[1727275786195,3.96820901,2622.4,2622.3,0.8686246]
[1727275786391,0.15490901,2622.4,2622.3,0.8686246]
[1727275787368,0.15490901,2622.4,2622.3,7.87345352]
[1727275787538,4.99165837,2622.9,2622.3,7.87345352]
[1727275787539,8.40608998,2622.9,2622.4,0.8268]
[1727275787754,3.0,2622.9,2622.7,0.8268]
[1727275787959,3.0,2622.9,2622.7,1.22861889]
[1727275788138,8.40586998,2623.0,2622.7,1.22861889]
[1727275788384,6.81243,2623.0,2622.7,1.22861889]
[1727275788557,0.15504537,2622.9,2622.7,1.22861889]
[1727275788753,0.15504537,2622.9,2622.8,3.6410149]
[1727275789267,7.62475,2623.1,2622.8,0.44962598]
[1727275789467,0.15505061,2623.0,2622.8,0.44962598]
[1727275789847,3.96748061,2623.0,2622.8,0.44962598]
[1727275790375,3.81257,2622.9,2622.8,0.44962598]
[1727275790685,3.96748061,2623.0,2622.8,0.44962598]
[1727275792094,0.15505061,2623.0,2622.9,0.811]
[1727275792384,5.40549998,2623.3,2622.9,1.25620149]
[1727275792385,3.81206,2623.3,2622.9,1.25620149]
[1727275792544,3.81206,2623.3,2623.0,3.19138892]
[1727275793165,7.62417,2623.3,2623.0,3.19138892]
[1727275793364,3.81206,2623.3,2623.0,3.19138892]
[1727275793684,5.80504832,2623.5,2623.0,3.19138892]
[1727275793685,3.81215,2623.2,2623.0,3.19138892]
[1727275794241,3.81215,2623.2,2623.0,4.01741896]
[1727275794685,8.40525998,2623.5,2623.1,0.8104]
[1727275794896,8.40525998,2623.5,2623.2,3.19138892]
[1727275795195,3.81192,2623.4,2623.1,0.8104]
[1727275795396,3.81207,2623.3,2623.1,1.33770205]
[1727275795587,3.81213,2623.2,2623.1,0.8104]
[1727275795884,3.96746894,2623.2,2623.1,0.8104]
[1727275796851,0.15533894,2623.2,2623.1,0.8104]
[1727275797052,3.81201,2623.3,2623.1,0.8104]
[1727275797248,0.15533894,2623.2,2623.1,0.8104]
[1727275797541,3.81201,2623.3,2623.1,0.8104]
[1727275797747,0.15533894,2623.2,2623.1,0.8104]
[1727275798156,3.81201,2623.3,2623.1,0.8104]
[1727275798379,0.15533894,2623.2,2623.1,0.8104]
[1727275798648,3.81201,2623.3,2623.1,0.8104]
[1727275798955,3.96746894,2623.2,2623.1,0.8104]
[1727275799146,3.81242,2623.1,2622.8,0.7979]
[1727275799366,0.15533894,2623.2,2622.8,0.7979]
[1727275799367,3.81257,2622.9,2622.8,0.7979]
[1727275799961,3.96789847,2622.9,2622.8,0.7979]
[1727275800247,3.96789847,2622.9,2622.4,3.19138892]
[1727275800248,3.81283,2622.8,2622.5,0.7617]
[1727275800478,3.81287,2622.7,2622.5,0.7617]
[1727275800791,0.15532847,2622.6,2622.5,0.7617]
[1727275801584,3.96832847,2622.6,2622.5,0.7617]
[1727275801748,3.8133,2622.4,2622.3,0.0392246]
[1727275801966,0.15532847,2622.6,2622.3,0.0392246]
[1727275801967,3.96840847,2622.6,2622.3,0.0392246]
[1727275802222,0.15523937,2622.4,2622.3,0.0392246]
[1727275802478,0.15513974,2622.4,2622.3,0.0392246]
[1727275802685,3.81301,2622.6,2622.3,0.0392246]
[1727275802891,0.15513974,2622.5,2622.4,3.19138892]
[1727275803095,3.81257,2622.9,2622.4,7.83778892]
[1727275803255,5.40557998,2623.2,2622.8,3.19138892]
[1727275803450,1.59343998,2623.2,2622.9,0.8331]
[1727275803674,6.81208,2623.3,2622.9,0.8331]
[1727275803675,10.62416,2623.3,2622.9,0.8331]
[1727275804025,3.81221,2623.2,2622.9,0.8331]
[1727275804170,3.81242,2623.0,2622.9,0.8331]
[1727275804483,3.81265,2622.9,2622.7,0.7749]
[1727275804796,3.81271,2622.8,2622.7,0.7749]
[1727275805792,3.81271,2622.8,2622.5,0.8118]
[1727275805805,5.73213998,2623.1,2622.5,0.8118]
[1727275805806,1.59343998,2623.0,2622.5,0.8118]
[1727275805817,1.59343998,2623.0,2622.3,0.8368246]
[1727275805818,3.81326,2622.5,2622.3,0.8368246]
[1727275806974,0.15522364,2622.4,2622.3,0.8368246]
[1727275806986,3.96852364,2622.4,2622.3,0.0392246]
[1727275806998,6.96852364,2622.4,2622.3,0.0392246]
[1727275807343,8.56196362,2622.4,2622.3,0.0392246]
[1727275807641,6.96852364,2622.4,2622.3,0.0392246]
[1727275807760,8.56196362,2622.4,2622.3,0.0392246]
[1727275807913,6.96852364,2622.4,2622.3,0.0392246]
[1727275809295,8.56196362,2622.4,2622.3,0.0392246]
[1727275809508,6.96852364,2622.4,2622.3,0.0392246]
[1727275811589,0.15522364,2622.4,2622.3,0.0392246]
[1727275811986,0.15522364,2622.4,2622.3,0.0339184]
[1727275812969,0.15522364,2622.4,2622.3,0.8089184]
[1727275813197,3.81301,2622.6,2622.3,1.59031213]
[1727275813390,3.81301,2622.6,2622.3,0.8089184]
[1727275813391,0.15490901,2622.4,2622.3,0.8089184]
[1727275813581,3.81327,2622.5,2622.3,0.0339184]
[1727275813813,3.96820901,2622.4,2622.3,0.0339184]
[1727275815315,5.56164899,2622.4,2622.3,0.0339184]
[1727275815478,3.96820901,2622.4,2622.3,0.0339184]
[1727275815781,0.15490901,2622.4,2622.3,0.8270184]
[1727275816670,0.15490901,2622.4,2622.3,1.22885913]
[1727275816897,1.59343998,2622.8,2622.6,0.7767]
[1727275817071,0.15500867,2622.7,2622.6,7.78108892]
[1727275817291,5.40572998,2623.1,2622.6,7.78108892]
[1727275817473,0.15500867,2623.0,2622.9,3.19138892]
[1727275817709,3.81215,2623.2,2622.9,4.36230246]
[1727275817911,3.96736867,2623.1,2622.8,0.816]
[1727275818886,0.15500867,2623.1,2622.8,0.816]
[1727275819220,3.81239,2623.1,2622.8,0.816]
[1727275819524,3.81257,2622.9,2622.6,0.8111]
[1727275819727,0.15523937,2622.8,2622.6,1.89624373]
[1727275819921,3.81256,2623.0,2622.6,1.89624373]
[1727275820077,0.15523937,2622.9,2622.6,1.89624373]
[1727275820713,0.15523937,2622.9,2622.7,0.89007827]
[1727275820924,0.15523937,2622.9,2622.7,7.97053896]
[1727275821200,1.59343998,2623.5,2622.9,0.7905]
[1727275821391,5.40513998,2623.5,2623.2,0.7905]
[1727275822142,1.59343998,2623.5,2623.2,0.7905]
[1727275822312,1.59343998,2623.6,2623.2,0.86673468]
[1727275822506,4.59343998,2623.6,2623.2,0.7905]
[1727275822837,8.40508998,2623.6,2623.2,0.7905]
[1727275823830,3.81176,2623.5,2623.2,0.7905]
[1727275824000,1.59343998,2623.6,2623.2,1.250783]
[1727275824565,5.40473998,2623.8,2623.3,3.19138892]
[1727275824573,5.40473998,2623.8,2623.3,7.00336892]
[1727275824917,0.15604679,2623.7,2623.3,7.00336892]
[1727275825056,0.15604679,2623.7,2623.4,1.16059189]
[1727275825355,0.15604679,2623.7,2623.4,4.97234189]
[1727275825518,0.15604679,2623.7,2623.6,3.81155]
[1727275825839,5.40418998,2624.2,2623.6,4.72026757]
[1727275826131,5.40418998,2624.2,2623.7,3.19138892]
[1727275826349,0.15613062,2624.1,2623.7,3.19138892]
[1727275826540,3.81098,2624.0,2623.6,0.8325]
[1727275826919,0.15624589,2623.9,2623.6,4.64396]
[1727275827120,1.59343998,2624.2,2623.8,3.81126]
[1727275827463,1.59343998,2624.2,2623.6,1.28075508]
[1727275827464,0.15624589,2624.1,2623.9,4.63478]
[1727275827843,0.15624589,2624.1,2623.6,1.28075508]
[1727275827844,3.81055,2624.3,2624.0,0.8282]
[1727275828342,0.15364602,2624.2,2624.0,0.8282]
[1727275828557,3.81054,2624.3,2624.0,0.8282]
[1727275828754,0.15364602,2624.1,2624.0,0.8282]
[1727275829053,3.81054,2624.3,2623.8,0.7674]
[1727275829258,3.96448602,2624.1,2623.8,0.7674]
[1727275829456,3.81084,2624.1,2623.8,0.7674]
[1727275829750,1.59343998,2624.4,2623.5,0.8282]
[1727275829751,3.81112,2623.9,2623.5,0.8282]
[1727275830090,3.81119,2623.9,2623.5,0.8282]
[1727275830232,3.81127,2623.8,2623.5,0.8282]
[1727275830416,0.15379269,2623.8,2623.5,4.63989]
[1727275830615,0.15379269,2623.8,2623.5,5.80421589]
[1727275830819,8.40409998,2624.3,2623.7,0.8198]
[1727275831023,6.81066,2624.3,2623.8,3.19138892]
[1727275831355,3.81076,2624.2,2623.8,3.19138892]
[1727275831693,3.81076,2624.2,2623.8,3.97363681]
[1727275831852,3.81039,2624.4,2623.8,3.97363681]
[1727275832054,0.19316998,2624.1,2623.8,3.97363681]
[1727275832362,0.19320664,2624.0,2623.8,3.97363681]
[1727275832566,0.19320664,2624.0,2623.8,0.78224789]
[1727275832758,3.81091,2624.1,2623.8,0.78224789]
[1727275832980,0.19320664,2623.9,2623.8,0.78224789]
[1727275833201,7.62093,2624.4,2623.9,4.5747]
[1727275833372,3.81046,2624.4,2623.9,4.5747]
[1727275833528,3.81054,2624.3,2624.0,0.85483368]
[1727275833725,3.81046,2624.4,2623.9,4.5747]
[1727275833726,3.81046,2624.4,2623.9,0.7636]
[1727275834074,3.81075,2624.2,2623.9,0.7636]
[1727275834972,3.81048,2624.4,2623.9,0.7636]
[1727275835136,3.81048,2624.4,2623.9,4.57472]
[1727275835330,3.81025,2624.5,2624.0,7.07847134]
[1727275835528,0.19274545,2624.4,2624.1,0.7991]
[1727275835741,0.19274545,2624.4,2624.2,3.19138892]
[1727275835951,3.81033,2624.5,2624.1,0.7991]
[1727275836161,0.19274545,2624.3,2624.2,3.19138892]
[1727275836375,3.8135462,2624.8,2624.2,3.19138892]
[1727275836549,0.19281358,2624.3,2624.2,7.00206892]
[1727275836730,3.81009,2624.7,2624.2,7.00206892]
[1727275836962,0.19281358,2624.3,2624.2,8.16327781]
[1727275837131,3.81009,2624.7,2624.2,8.16327781]
[1727275837462,4.00291358,2624.6,2624.2,4.35259781]
[1727275838038,4.00291358,2624.6,2624.2,8.16326781]
[1727275838532,0.19281358,2624.6,2624.2,8.16326781]
[1727275838972,0.19281358,2624.6,2624.4,4.63419]
[1727275839470,0.0036262,2624.8,2624.4,4.63419]
[1727275839769,0.0036262,2624.8,2624.4,0.8238]
[1727275839770,3.80996,2624.7,2624.4,0.8238]
[1727275840138,3.81003,2624.7,2624.4,0.8238]
[1727275841155,3.8134462,2624.8,2624.4,0.8238]
[1727275842476,3.80996,2624.7,2624.4,0.8238]
[1727275842630,3.81017,2624.6,2624.4,0.8238]
[1727275842841,0.19291315,2624.6,2624.4,0.8238]
[1727275843042,4.00304315,2624.6,2624.4,0.8238]
[1727275843697,0.19291315,2624.6,2624.4,0.8238]
[1727275843996,0.19291315,2624.6,2624.5,0.463431]
[1727275844262,0.19291315,2624.6,2624.5,5.035271]
[1727275844464,0.0036262,2624.8,2624.7,3.80995]
[1727275844692,0.19680662,2624.8,2624.7,7.00133892]
[1727275844842,0.0036262,2624.8,2624.7,1.20366099]
[1727275845014,0.19680662,2624.8,2624.7,1.20366099]
[1727275846267,0.19680662,2624.8,2624.7,8.20499991]
[1727275846678,0.19680662,2624.8,2624.7,9.02189991]
[1727275849710,0.0036262,2624.8,2624.7,9.02189991]
[1727275850488,0.0375446,2625.5,2625.4,3.80894]
[1727275850836,0.23095552,2625.5,2625.4,7.78472892]
[1727275850963,0.0375446,2625.5,2625.4,7.78472892]
[1727275851295,0.23095552,2625.5,2625.4,7.78472892]
[1727275851485,0.0375446,2625.5,2625.4,8.94410881]
[1727275852504,0.0375446,2625.5,2625.4,5.13516881]
[1727275852869,0.0375446,2625.5,2625.2,0.8083]
[1727275853096,0.0375446,2625.5,2625.0,4.61779]
[1727275853300,4.00279699,2625.4,2625.0,0.8083]
[1727275853962,4.00279699,2625.4,2625.0,3.99968892]
[1727275854250,3.80911,2625.3,2625.1,0.78093189]
[1727275854450,0.19374082,2625.2,2624.8,1.70478999]
[1727275854659,0.19374082,2625.2,2624.8,4.89617891]
[1727275854884,3.80916,2625.3,2624.8,4.89617891]
[1727275855085,0.19374082,2625.1,2624.8,8.70596891]
[1727275855397,0.19374082,2625.0,2624.9,1.25158089]
[1727275855706,3.80904,2625.4,2624.9,1.25158089]
[1727275855707,3.80923,2625.2,2624.9,1.25158089]
[1727275855989,3.80923,2625.2,2624.8,3.99398892]
[1727275855990,0.19374082,2625.1,2624.8,3.99398892]
[1727275856355,0.19374082,2625.1,2624.8,0.8026]
[1727275856575,3.80923,2625.2,2624.8,3.99398892]
[1727275856787,0.19374082,2625.0,2624.8,4.39338781]
[1727275856996,3.80923,2625.2,2624.8,4.39338781]
[1727275857152,0.19374082,2624.9,2624.8,4.39338781]
[1727275857495,3.80939,2625.1,2624.8,4.39338781]
[1727275857789,3.80939,2625.1,2624.8,0.8026]
[1727275858021,0.19374082,2625.0,2624.8,0.8026]
[1727275858234,0.19374082,2625.0,2624.4,3.19138892]
[1727275858548,3.80988,2624.8,2624.5,0.70018289]
[1727275858653,3.80988,2624.8,2624.4,0.8232]
[1727275858916,0.19341615,2624.7,2624.4,4.01458892]
[1727275859113,3.80988,2624.8,2624.4,4.01458892]
[1727275859331,4.00367905,2624.7,2624.4,4.01458892]
[1727275859553,3.81011,2624.6,2624.4,0.8232]
[1727275859834,3.80995,2624.8,2624.4,0.8232]
[1727275860056,0.1936362,2624.5,2624.4,0.8232]
[1727275860340,3.80995,2624.8,2624.4,0.8232]
[1727275860341,3.80997,2624.7,2624.4,0.8232]
[1727275860680,3.80992,2624.8,2624.4,0.8232]
[1727275860909,3.80996,2624.7,2624.4,0.8232]
[1727275861084,0.1936362,2624.6,2624.4,1.60572689]
[1727275861620,4.0037562,2624.6,2624.4,0.78252689]
[1727275861949,0.1936362,2624.6,2624.2,7.80986892]
[1727275862083,3.80983,2624.8,2624.2,7.80973892]
[1727275862290,4.0036162,2624.7,2624.2,7.80973892]
[1727275862510,3.81012,2624.6,2624.3,0.78097389]
[1727275862684,4.00379333,2624.5,2624.2,3.99918892]
[1727275863123,4.00379333,2624.5,2624.0,7.80273892]
[1727275863124,3.81041,2624.4,2624.0,7.80273892]
[1727275863337,3.81041,2624.4,2624.0,0.8005]
[1727275863486,3.81041,2624.4,2624.0,3.99188892]
[1727275863694,0.19339523,2624.3,2624.1,0.78029289]
[1727275864287,0.19339523,2624.2,2624.1,0.78029289]
[1727275864497,3.81006,2624.7,2624.1,4.59112289]
[1727275864698,0.3264,2624.9,2624.4,3.19138892]
[1727275864699,0.19339523,2624.6,2624.4,3.19138892]
[1727275864930,3.80976,2624.9,2624.5,0.87799851]
[1727275865108,3.80976,2624.9,2624.6,3.19138892]
[1727275865318,0.19320663,2624.8,2624.6,3.19138892]
[1727275866038,0.19320663,2624.8,2624.5,0.8018]
[1727275866234,0.19320663,2624.8,2624.6,0.49311889]
[1727275866634,0.19320663,2624.8,2624.6,7.49457781]
[1727275866955,3.80953,2625.0,2624.6,3.68450781]
[1727275867250,0.19321187,2624.9,2624.6,3.68450781]
[1727275867416,0.19321187,2624.9,2624.7,0.82965478]
[1727275867618,4.00289187,2624.9,2624.7,0.82965478]
[1727275868004,0.19321187,2624.9,2624.7,0.82965478]
[1727275868205,0.19321187,2624.9,2624.8,7.00119892]
[1727275868515,0.0375446,2625.5,2625.2,3.80921]
[1727275868720,0.0375446,2625.5,2625.3,0.380921]
[1727275868933,0.18968805,2625.4,2625.3,0.380921]
[1727275869109,3.99876805,2625.4,2624.9,4.58734]
[1727275869338,3.80919,2625.3,2624.9,0.7777]
[1727275869542,3.80919,2625.3,2625.0,0.39690889]
[1727275869740,0.18968805,2625.2,2625.0,0.39690889]
[1727275870060,3.80931,2625.2,2625.0,0.39690889]
[1727275870207,0.18985088,2625.1,2625.0,0.39690889]
[1727275870641,3.8464446,2625.5,2625.0,0.39690889]
[1727275870813,0.18985088,2625.1,2625.0,3.58829781]
[1727275871021,3.80903,2625.4,2625.0,3.58829781]
[1727275871339,3.80903,2625.4,2625.1,0.81755578]
[1727275871713,3.8464446,2625.5,2625.1,0.81755578]
[1727275871941,3.8091,2625.3,2625.1,0.81755578]
[1727275872445,3.8091,2625.3,2624.9,0.7777]
[1727275872446,0.18985088,2625.2,2624.9,0.7777]
[1727275872848,3.80952,2625.0,2624.7,0.82965478]
[1727275873203,0.18992438,2624.9,2624.7,0.82965478]
[1727275873546,0.18992438,2624.9,2624.4,7.4]
[1727275873547,3.80981,2624.8,2624.4,3.99648892]
[1727275873711,3.80969,2624.9,2624.4,7.80679892]
[1727275874251,0.18992438,2624.8,2624.5,1.16172289]
[1727275875110,0.18992438,2624.8,2624.4,0.8051]
[1727275875329,0.18992438,2624.8,2624.4,3.99648892]
[1727275875566,5.40262998,2625.3,2624.6,3.19138892]
[1727275875847,5.40238998,2625.4,2624.9,3.19138892]
[1727275876050,3.80924,2625.2,2624.7,7.81643892]
[1727275876219,3.80924,2625.2,2624.8,0.462509]
[1727275876410,4.59343998,2625.4,2624.8,0.462509]
[1727275876610,3.80934,2625.2,2624.8,0.462509]
[1727275876842,3.80934,2625.2,2624.9,0.82789379]
[1727275877045,3.80939,2625.1,2624.9,0.82789379]
[1727275877581,3.80939,2625.1,2624.5,0.7888]
[1727275877582,3.8098,2624.9,2624.5,0.7888]
[1727275877741,3.8098,2624.9,2624.5,3.98018892]
[1727275877742,3.80978,2624.9,2624.5,3.98018892]
[1727275878356,7.61958,2624.9,2624.5,3.98018892]
[1727275878551,4.13587,2625.1,2624.5,4.75925381]
[1727275878757,3.80947,2625.1,2624.6,3.81003]
[1727275878956,7.61895,2625.1,2624.7,3.19138892]
[1727275879174,3.80947,2625.1,2624.7,3.19138892]
[1727275879350,0.18979311,2625.0,2624.7,4.0483173]
[1727275879955,3.99940311,2625.0,2624.7,0.85692838]
[1727275880156,3.80976,2624.9,2624.2,3.8106]
[1727275880441,3.81003,2624.7,2624.3,0.7737]
[1727275880893,3.81003,2624.7,2624.3,3.96508892]
[1727275881072,0.18977735,2624.6,2624.3,4.74265781]
[1727275882070,3.99999735,2624.6,2624.3,1.55126889]
[1727275882478,0.18977735,2624.6,2624.3,1.55126889]
[1727275883304,0.18977735,2624.6,2624.3,8.55317781]
[1727275884504,0.18977735,2624.6,2624.3,4.74265781]
[1727275885401,0.18977735,2624.6,2624.4,0.85533378]
[1727275887114,0.18977735,2624.6,2624.2,3.81064]
[1727275887115,3.81037,2624.5,2624.1,3.81082]
[1727275887296,3.81037,2624.5,2623.6,6.81153]
[1727275887297,0.18977735,2624.6,2624.4,0.7915]
[1727275887478,3.58881202,2624.8,2624.4,0.7915]
[1727275887479,5.40327998,2624.8,2624.4,0.7915]
[1727275887873,8.40310998,2624.9,2624.5,3.19138892]
[1727275888277,1.59343998,2624.8,2624.5,3.19138892]
[1727275888473,1.59343998,2624.8,2624.4,1.95188989]
[1727275888713,1.59343998,2624.9,2624.7,3.19138892]
[1727275889209,5.40288998,2625.1,2624.8,0.783]
[1727275889427,1.59343998,2625.1,2624.9,3.19138892]
[1727275889711,1.59343998,2625.1,2624.8,0.783]
[1727275889712,3.80945,2625.1,2624.8,0.783]
[1727275889883,3.80945,2625.1,2624.8,1.18043889]
[1727275890079,5.40288998,2625.1,2624.8,1.18043889]
[1727275891110,0.18973533,2625.0,2624.9,3.19138892]
[1727275891603,0.18358201,2625.0,2624.9,3.19138892]
[1727275891907,0.18358201,2625.0,2624.9,0.81817078]
[1727275892106,5.40269998,2625.2,2624.9,0.81817078]
[1727275892312,0.18358201,2625.0,2624.9,0.81817078]
[1727275892521,5.40269998,2625.2,2624.9,0.81817078]
[1727275892522,1.59343998,2625.2,2624.9,0.81817078]
[1727275892715,5.80450979,2625.3,2624.9,0.81817078]
[1727275892716,0.18358201,2625.0,2624.9,7.8192197]
[1727275892877,1.59343998,2625.3,2624.9,7.8191097]
[1727275893227,0.18358201,2625.0,2624.9,4.62772078]
[1727275893525,3.8464446,2625.5,2625.1,3.80935]
[1727275893526,0.18368224,2625.2,2625.1,3.80935]
[1727275893819,1.63098458,2625.5,2625.2,0.7809]
[1727275894321,1.63098458,2625.5,2625.0,3.80941]
[1727275894322,3.80918,2625.3,2625.0,0.7809]
[1727275894521,3.80918,2625.3,2624.8,0.39743889]
[1727275894522,3.80924,2625.2,2624.8,0.39743889]
[1727275894677,3.99295391,2625.2,2624.8,0.39743889]
[1727275894879,3.99295391,2625.2,2624.7,0.7809]
[1727275894880,3.80965,2625.0,2624.7,0.7809]
[1727275895113,3.80965,2625.0,2624.5,3.19138892]
[1727275895114,3.80965,2625.0,2624.4,0.7809]
[1727275895284,3.80983,2624.8,2624.4,4.59128]
[1727275895491,3.80999,2624.7,2624.4,1.94022989]
[1727275895715,0.18371391,2624.7,2624.4,1.94022989]
[1727275895918,9.21319998,2624.8,2624.4,1.94022989]
[1727275896122,9.21319998,2624.8,2624.4,0.7809]
[1727275896413,0.18366114,2624.7,2624.4,0.7809]
[1727275896645,0.14766114,2624.7,2624.4,0.7809]
[1727275896953,3.95762114,2624.7,2624.4,0.7809]
[1727275897137,5.40326998,2624.8,2624.4,0.7809]
[1727275897338,0.18246114,2624.6,2624.4,0.7809]
[1727275897513,0.18246114,2624.5,2624.4,0.7809]
[1727275897712,3.80999,2624.7,2624.4,0.7809]
[1727275898130,0.18246114,2624.6,2624.4,0.7809]
[1727275898552,3.99256114,2624.6,2624.4,0.7809]
[1727275898745,5.58600112,2624.6,2624.4,0.7809]
[1727275899044,3.99256114,2624.6,2624.4,0.7809]
[1727275899376,3.81024,2624.5,2624.4,0.7809]
[1727275899555,3.81024,2624.5,2624.0,0.8056]
[1727275899751,5.40367998,2624.5,2624.1,0.381094]
[1727275899930,0.18226064,2624.4,2624.1,3.57248292]
[1727275900622,0.18226064,2624.4,2624.3,7.00191892]
[1727275900834,0.18226064,2624.4,2624.3,7.76791892]
[1727275901043,1.59343998,2624.7,2624.4,3.81032]
[1727275901737,0.18223424,2624.6,2624.4,3.81032]
[1727275902125,0.18223424,2624.6,2624.5,3.81024]
[1727275902357,0.18223424,2624.6,2624.5,7.00162892]
[1727275902651,1.59343998,2624.8,2624.6,3.81007]
[1727275902851,0.18223951,2624.6,2624.5,3.19138892]
[1727275903024,1.59343998,2624.8,2624.4,3.81032]
[1727275903271,0.18223951,2624.6,2624.4,3.81032]
[1727275903427,1.59343998,2624.8,2624.4,3.81032]
[1727275903768,0.18223951,2624.5,2624.3,3.95738892]
[1727275903927,1.59343998,2624.7,2624.3,4.57649]
[1727275904128,1.59343998,2624.7,2624.4,0.77679689]
[1727275904566,5.40341998,2624.7,2624.4,0.77679689]
[1727275904866,1.59343998,2624.7,2624.4,0.77679689]
[1727275905226,0.18230284,2624.6,2624.4,4.58714689]
[1727275905432,1.59343998,2624.8,2624.5,7.8560825]
[1727275906268,1.59343998,2624.9,2624.5,7.8560825]
[1727275906428,1.59343998,2624.8,2624.5,0.85445358]
[1727275906925,5.40324998,2624.8,2624.4,3.81035]
[1727275907138,1.59343998,2624.7,2624.5,3.81023]
[1727275907471,5.80487905,2624.9,2624.5,3.81023]
[1727275907472,1.59343998,2624.8,2624.5,3.81023]
[1727275907765,5.40325998,2624.8,2624.5,1.15779189]
[1727275907966,1.59343998,2624.7,2624.5,1.15779189]
[1727275908176,1.59343998,2624.8,2624.5,1.15779189]
[1727275908369,1.59343998,2624.8,2624.6,0.87783719]
[1727275908571,1.59343998,2624.7,2624.6,0.87783719]
[1727275908774,1.59343998,2624.8,2624.6,0.87783719]
[1727275908930,0.18231867,2624.7,2624.6,0.87783719]
[1727275909278,1.59614103,2624.7,2624.6,0.87783719]
[1727275909430,3.81018,2624.6,2624.3,0.766]
[1727275909631,1.7784597,2624.7,2624.3,0.766]
[1727275909969,1.7784597,2624.7,2624.4,3.81039]
[1727275909970,1.59614103,2624.7,2624.4,3.81039]
[1727275910188,0.18232924,2624.6,2624.5,0.77677789]
[1727275911044,0.18232924,2624.6,2624.5,4.58701789]
[1727275911579,0.18232924,2624.6,2624.5,0.77677789]
[1727275912356,0.18232924,2624.6,2624.5,8.53710681]
[1727275912680,1.59614103,2624.8,2624.6,3.81003]
[1727275912838,1.59614103,2624.9,2624.6,4.66374068]
[1727275914054,1.59614103,2624.8,2624.6,4.66374068]
[1727275915176,1.59614103,2624.9,2624.6,4.66372068]
[1727275915353,1.59614103,2624.9,2624.7,0.86138096]
[1727275915744,5.40601103,2624.8,2624.5,0.7587]
[1727275915939,5.40601103,2624.8,2624.3,0.7937]
[1727275915940,1.59614103,2624.7,2624.3,0.7937]
[1727275916191,3.81017,2624.6,2624.3,0.7937]
[1727275916353,3.81017,2624.6,2624.4,0.460437]
[1727275916354,3.99254144,2624.6,2624.4,0.460437]
[1727275916677,3.81024,2624.5,2624.3,0.7937]
[1727275916919,3.81039,2624.4,2624.1,1.174794]
[1727275917054,1.77851247,2624.6,2624.1,1.174794]
[1727275917055,3.81025,2624.5,2624.1,1.174794]
[1727275917381,3.8104,2624.4,2624.1,1.174794]
[1727275918169,5.40639103,2624.5,2624.1,1.174794]
[1727275918371,1.59614103,2624.4,2624.1,1.174794]
[1727275918837,5.40639103,2624.5,2624.1,1.174794]
[1727275919243,5.40537987,2624.5,2624.1,1.174794]
[1727275919442,9.21574987,2624.5,2624.1,1.174794]
[1727275919854,0.18229757,2624.4,2624.1,1.174794]
[1727275920363,1.7784386,2624.4,2624.1,1.174794]
[1727275920753,5.40675103,2624.3,2623.8,4.58854]
[1727275921083,1.59614103,2624.3,2624.2,0.7825]
[1727275921291,1.59614103,2624.4,2624.2,0.7825]
[1727275921487,1.59614103,2624.4,2624.3,0.77846989]
[1727275922049,1.59614103,2624.4,2624.0,3.81096]
[1727275922248,1.59614103,2624.4,2623.9,4.56244]
[1727275922493,9.94371297,2624.5,2623.9,0.7514]
[1727275922494,1.59614103,2624.3,2623.9,0.7514]
[1727275922693,1.59614103,2624.3,2623.9,4.56244]
[1727275922848,5.40669103,2624.3,2623.9,1.90791189]
[1727275923191,5.40669103,2624.3,2623.9,0.7514]
[1727275923192,3.81083,2624.1,2623.9,0.7514]
[1727275923397,7.62179,2624.1,2623.7,0.7594]
[1727275923599,3.99314451,2624.0,2623.7,0.7594]
[1727275923896,0.18214451,2624.0,2623.8,3.81125]
[1727275924050,1.59614103,2624.2,2623.9,4.02118892]
[1727275924251,3.592824,2624.3,2623.9,4.02118892]
[1727275924490,1.59614103,2624.3,2624.0,4.59420389]
[1727275924861,1.59614103,2624.4,2624.1,7.00220892]
[1727275926286,1.59614103,2624.4,2624.1,3.19138892]
[1727275926481,3.81084,2624.1,2623.6,4.58716]
[1727275926676,0.3264,2624.3,2623.6,4.66737981]
[1727275926677,1.59614103,2624.2,2623.6,4.66737981]
[1727275926875,3.8109,2624.1,2623.6,8.47882981]
[1727275927097,3.811,2624.0,2623.7,0.84788298]
[1727275927483,3.81119,2623.9,2623.7,0.84788298]
[1727275927809,3.81119,2623.9,2623.4,7.00313892]
[1727275927810,1.59614103,2623.8,2623.4,4.60321]
[1727275928006,1.59614103,2623.8,2623.4,7.79459892]
[1727275928307,3.99331341,2623.9,2623.4,7.79459892]
[1727275928308,0.18212341,2623.7,2623.4,7.79459892]
[1727275928511,3.81119,2623.9,2623.5,0.77945989]
[1727275928670,0.18212341,2623.6,2623.5,0.77945989]
[1727275928877,3.81113,2623.9,2623.5,0.77945989]
[1727275929203,3.81127,2623.8,2623.4,3.98278892]
[1727275929405,0.18212341,2623.7,2623.4,0.7914]
[1727275929614,3.99365341,2623.7,2623.4,0.7914]
[1727275929816,3.81164,2623.6,2623.1,4.63358]
[1727275930119,0.18193337,2623.5,2623.2,4.59462689]
[1727275930421,0.18193337,2623.5,2623.2,0.78249689]
[1727275930594,0.18193337,2623.5,2623.1,0.8214]
[1727275930595,3.99370337,2623.5,2623.1,0.8214]
[1727275931182,0.18193337,2623.5,2623.1,0.8214]
[1727275931418,0.18193337,2623.5,2623.1,4.70983529]
[1727275931591,0.18193337,2623.5,2623.2,3.81213]
[1727275931795,0.18193337,2623.5,2623.2,4.98348742]
[1727275931996,3.99366337,2623.5,2623.2,1.17135742]
[1727275932194,3.81199,2623.3,2622.8,7.00397892]
[1727275932405,0.18185417,2623.2,2622.8,4.62679]
[1727275932714,3.81215,2623.2,2622.8,5.78989789]
[1727275932879,0.18178551,2623.1,2622.8,5.78989789]
[1727275933079,0.18178551,2623.1,2622.8,1.97730789]
[1727275933361,0.18178551,2623.1,2622.6,10.81718892]
[1727275933362,3.99406551,2623.1,2622.6,4.6404]
[1727275933665,3.99406551,2623.1,2622.6,7.83178892]
[1727275933666,0.18178551,2623.1,2622.6,7.83178892]
[1727275933819,0.18178551,2623.1,2622.6,11.64471892]
[1727275934020,3.99406551,2623.1,2622.6,7.83178892]
[1727275934361,0.18178551,2623.1,2622.7,4.59601889]
[1727275934920,0.18178551,2623.1,2622.7,0.78317889]
[1727275935219,0.18178551,2623.1,2622.7,0.07624391]
[1727275935420,0.18178551,2623.1,2622.6,7.83181892]
[1727275935667,3.81251,2623.0,2622.6,0.8275]